bitfinex/quotes_BTCUSD_20250814
["timestamp","ask_amount","ask_price","bid_price","bid_amount"]
[1755205937610,0.67793636,118290.0,118280.0,0.54646329]
[1755205940674,0.67793636,118290.0,118280.0,1.18956213]
[1755205941490,0.68020636,118290.0,118280.0,0.20148329]
[1755205941728,0.67793636,118290.0,118280.0,0.20148329]
[1755205942662,0.67793636,118290.0,118280.0,0.84956213]
[1755205943087,0.67793636,118290.0,118280.0,0.20646329]
[1755205943282,0.67793636,118290.0,118280.0,0.84956213]
[1755205943489,0.67793636,118290.0,118280.0,0.20646329]
[1755205943855,0.67793636,118290.0,118280.0,0.84956213]
[1755205944232,0.67793636,118290.0,118280.0,0.82416913]
[1755205946129,2.13602933,118290.0,118280.0,0.17609029]
[1755205946346,2.05120809,118290.0,118280.0,0.17609029]
[1755205946548,0.81262537,118290.0,118280.0,0.17609029]
[1755205946759,1.45572421,118290.0,118280.0,0.17609029]
[1755205947197,2.09882305,118290.0,118280.0,0.17609029]
[1755205947824,2.26789904,118290.0,118280.0,0.17609029]
[1755205948006,2.09882305,118290.0,118280.0,0.17609029]
[1755205948255,0.81262537,118290.0,118280.0,0.17609029]
[1755205948674,1.45572421,118290.0,118280.0,0.17609029]
[1755205950354,1.43987925,118290.0,118280.0,0.17609029]
[1755205950752,1.36856961,118290.0,118280.0,0.17609029]
[1755205952756,0.76077041,118290.0,118280.0,0.18107029]
[1755205953180,0.34439636,118290.0,118280.0,0.18107029]
[1755205953380,0.33891636,118290.0,118280.0,0.75285949]
[1755205953797,0.47171636,118290.0,118280.0,0.75285949]
[1755205955928,0.47171636,118290.0,118280.0,0.18107029]
[1755205956134,0.47171636,118290.0,118280.0,0.75285949]
[1755205956357,0.33891636,118290.0,118280.0,1.09285949]
[1755205956759,1e-08,118290.0,118280.0,1.09285949]
[1755205956963,1e-08,118290.0,118280.0,0.52107029]
[1755205957124,1e-08,118290.0,118280.0,1.09285949]
[1755205957530,1e-08,118290.0,118280.0,1.11825049]
[1755205959805,1e-08,118290.0,118280.0,0.54646129]
[1755205962957,0.57375921,118290.0,118280.0,0.17609029]
[1755205966848,0.86084326,118290.0,118280.0,0.17609029]
[1755205967518,1.02991925,118290.0,118280.0,0.17609029]
[1755205968155,0.86084326,118290.0,118280.0,0.17609029]
[1755205968361,1.02991925,118290.0,118280.0,0.17609029]
[1755205968575,1.07430944,118290.0,118280.0,0.007]
[1755205968975,1.17430944,118290.0,118280.0,0.007]
[1755205969343,1.25913068,118290.0,118280.0,0.17609029]
[1755205969748,1.25913068,118290.0,118280.0,0.16909029]
[1755205970102,1.09005469,118290.0,118280.0,0.16909029]
[1755205970415,1.25913068,118290.0,118280.0,0.16909029]
[1755205970985,0.2,118280.0,118270.0,0.16910459]
[1755205971229,0.99336325,118280.0,118270.0,0.16910459]
[1755205972148,0.99336325,118280.0,118270.0,0.17610459]
[1755205973518,1.56515245,118280.0,118270.0,0.17610459]
[1755205973723,0.99336325,118280.0,118270.0,0.17610459]
[1755205973847,1.00917524,118280.0,118270.0,0.17610459]
[1755205977325,0.99336325,118280.0,118270.0,0.17610459]
[1755205980215,0.41930405,118280.0,118270.0,0.17610459]
[1755205980456,0.99109325,118280.0,118270.0,0.17610459]
[1755205982497,0.28678405,118280.0,118270.0,0.17610459]
[1755205982718,0.98892325,118280.0,118270.0,0.18121459]
[1755205982943,0.99089325,118280.0,118270.0,0.18121459]
[1755205983161,0.99089325,118280.0,118270.0,0.17610459]
[1755205988172,1.04165325,118280.0,118270.0,0.17610459]
[1755205988385,0.99089325,118280.0,118270.0,0.17610459]
[1755205990700,0.41910405,118280.0,118270.0,0.17610459]
[1755205990899,0.99089325,118280.0,118270.0,0.17610459]
[1755205993204,0.99089325,118280.0,118270.0,0.17610459]
[1755205993915,0.41910405,118280.0,118270.0,0.17610459]
[1755205994126,0.99089325,118280.0,118270.0,0.17610459]
[1755205995139,0.99089325,118280.0,118270.0,0.17929459]
[1755205995345,1.00672247,118280.0,118270.0,0.17929459]
[1755205996194,1.00672295,118280.0,118270.0,0.17929459]
[1755205997369,1.00672295,118280.0,118270.0,0.18143459]
[1755205998492,1.01464639,118280.0,118270.0,0.18143459]
[1755205999043,1.01466357,118280.0,118270.0,0.18143459]
[1755205999447,0.99881669,118280.0,118270.0,0.18143459]
[1755205999667,0.99881669,118280.0,118270.0,0.17610459]
[1755205999864,1.01466515,118280.0,118270.0,0.17610459]
[1755206002333,0.99881669,118280.0,118270.0,0.17610459]
[1755206002630,1.01466842,118280.0,118270.0,0.17610459]
[1755206003222,0.99684669,118280.0,118270.0,0.17610459]
[1755206003427,1.01270006,118280.0,118270.0,0.17610459]
[1755206005021,1.01270049,118280.0,118270.0,0.17610459]
[1755206005399,0.99684669,118280.0,118270.0,0.17610459]
[1755206006249,1.01270079,118280.0,118270.0,0.17610459]
[1755206007451,0.98892325,118280.0,118270.0,0.17610459]
[1755206007685,0.99685055,118280.0,118270.0,0.17610459]
[1755206007893,0.99685055,118280.0,118270.0,0.17929459]
[1755206008554,1.01270559,118280.0,118270.0,0.17929459]
[1755206008798,1.08433841,118280.0,118270.0,0.17929459]
[1755206010328,1.08647841,118280.0,118270.0,0.17929459]
[1755206010765,1.08647896,118280.0,118270.0,0.17929459]
[1755206013599,1.08647896,118280.0,118270.0,0.17610459]
[1755206013790,1.18857964,118280.0,118270.0,0.17610459]
[1755206013944,1.18647964,118280.0,118270.0,0.17610459]
[1755206014975,1.18647964,118280.0,118270.0,0.17310459]
[1755206015201,1.18647964,118280.0,118270.0,0.16910459]
[1755206016631,1.18647879,118280.0,118270.0,0.16910459]
[1755206017737,0.41073677,118280.0,118270.0,0.17111459]
[1755206017941,1.18583879,118280.0,118270.0,0.17425459]
[1755206018150,1.18369879,118280.0,118270.0,0.17425459]
[1755206018377,1.23651879,118280.0,118270.0,0.17425459]
[1755206019037,1.23445879,118280.0,118270.0,0.17425459]
[1755206019473,1.21860375,118280.0,118270.0,0.17425459]
[1755206019670,1.23445802,118280.0,118270.0,0.17425459]
[1755206020108,1.23651802,118280.0,118270.0,0.16910459]
[1755206022719,0.593096,118280.0,118270.0,0.16910459]
[1755206022897,1.23651802,118280.0,118270.0,0.17425459]
[1755206023852,0.593096,118280.0,118270.0,0.17425459]
[1755206024145,1.23651802,118280.0,118270.0,0.17425459]
[1755206024346,1.17577034,118280.0,118270.0,0.17425459]
[1755206024992,0.11585427,118280.0,118270.0,0.81767661]
[1755206025217,0.1,118280.0,118270.0,0.81767661]
[1755206025446,1e-08,118290.0,118280.0,0.16909029]
[1755206025663,1e-08,118290.0,118280.0,0.81452231]
[1755206025664,0.13168001,118290.0,118280.0,0.81452231]
[1755206025891,0.13168001,118290.0,118280.0,0.81766231]
[1755206026120,0.13168001,118290.0,118280.0,0.84305631]
[1755206026806,0.13168001,118290.0,118280.0,0.19963429]
[1755206027540,0.13168001,118290.0,118280.0,0.20363429]
[1755206028456,0.13168001,118290.0,118280.0,0.20763429]
[1755206028671,0.33168001,118290.0,118280.0,0.20763429]
[1755206034254,0.33168001,118290.0,118280.0,0.18224029]
[1755206037872,0.99005063,118290.0,118280.0,0.17709029]
[1755206038669,0.99005063,118290.0,118280.0,0.17309029]
[1755206039452,0.99005063,118290.0,118280.0,0.17609029]
[1755206040411,1.19005063,118290.0,118280.0,0.17609029]
[1755206040656,1.19232063,118290.0,118280.0,0.17609029]
[1755206045344,1.38757547,118290.0,118280.0,0.17609029]
[1755206045520,1.45413769,118290.0,118280.0,0.17609029]
[1755206045674,1.55413769,118290.0,118280.0,0.17609029]
[1755206046303,1.55413769,118290.0,118280.0,0.003]
[1755206046522,1.55413769,118290.0,118280.0,0.17209029]
[1755206046722,1.55413769,118290.0,118280.0,0.16909029]
[1755206047737,1.55414002,118290.0,118270.0,0.16910459]
[1755206047944,0.83879062,118280.0,118270.0,0.16910459]
[1755206048227,0.81950706,118280.0,118270.0,0.16910459]
[1755206050114,0.81950706,118280.0,118270.0,0.17210459]
[1755206050334,1.44184363,118280.0,118270.0,0.003]
[1755206050546,1.62901094,118280.0,118270.0,0.17610459]
[1755206050785,0.40158977,118280.0,118270.0,0.17610459]
[1755206050994,1.72901196,118280.0,118270.0,0.17610459]
[1755206051221,1.72901196,118280.0,118270.0,0.007]
[1755206051432,1.72901026,118280.0,118270.0,0.007]
[1755206051857,1.72901026,118280.0,118270.0,0.17610459]
[1755206052285,1.72901026,118280.0,118270.0,0.17210459]
[1755206052498,1.72901026,118280.0,118270.0,0.003]
[1755206052706,1.72901026,118280.0,118270.0,0.17310459]
[1755206053339,1.72901026,118280.0,118270.0,0.17010459]
[1755206053553,1.55991997,118280.0,118270.0,0.17010459]
[1755206053738,1.72901026,118280.0,118270.0,0.17110459]
[1755206054374,1.74645928,118280.0,118270.0,0.002]
[1755206054624,1.75436185,118280.0,118270.0,0.002]
[1755206055069,1.75436185,118280.0,118270.0,0.17110459]
[1755206055281,1.75436037,118280.0,118270.0,0.002]
[1755206055452,1.83918161,118280.0,118270.0,0.002]
[1755206058191,1.83128052,118280.0,118270.0,0.002]
[1755206058408,2.03428052,118280.0,118270.0,0.002]
[1755206059322,2.03426938,118280.0,118270.0,0.002]
[1755206060318,7.38216706,118280.0,118270.0,0.002]
[1755206060556,7.50565066,118280.0,118270.0,0.002]
[1755206061105,7.41663066,118280.0,118270.0,0.002]
[1755206063978,7.38582066,118280.0,118270.0,0.002]
[1755206064612,7.38808066,118280.0,118270.0,0.002]
[1755206065264,7.38807885,118280.0,118270.0,0.002]
[1755206065492,7.44154003,118280.0,118270.0,0.002]
[1755206066403,7.47973523,118280.0,118270.0,0.002]
[1755206068028,7.47973623,118280.0,118270.0,0.002]
[1755206069065,7.39491499,118280.0,118270.0,0.002]
[1755206069210,7.36411499,118280.0,118270.0,0.002]
[1755206069904,7.36637499,118280.0,118270.0,0.002]
[1755206070857,7.36638312,118280.0,118270.0,0.002]
[1755206071516,7.39179212,118280.0,118270.0,0.002]
[1755206071694,7.47661336,118280.0,118270.0,0.002]
[1755206072347,7.25789212,118280.0,118270.0,0.002]
[1755206072581,7.36461094,118280.0,118270.0,0.00723]
[1755206072795,2.16828263,118280.0,118270.0,0.17633459]
[1755206073002,1.72834606,118280.0,118270.0,0.17633459]
[1755206073209,1.74579508,118280.0,118270.0,0.17633459]
[1755206073652,2.29992263,118280.0,118270.0,0.17633459]
[1755206073864,1.38834842,118280.0,118270.0,0.17633459]
[1755206074270,1.72834842,118280.0,118270.0,0.17633459]
[1755206074505,1.72242484,118280.0,118270.0,0.17633459]
[1755206074732,1.52242484,118280.0,118270.0,0.17633459]
[1755206074971,1.38242484,118280.0,118270.0,0.17633459]
[1755206075641,1.58242484,118280.0,118270.0,0.17633459]
[1755206076061,1.54422964,118280.0,118270.0,0.17633459]
[1755206077908,1.59498964,118280.0,118270.0,0.17633459]
[1755206078114,1.54422964,118280.0,118270.0,0.17633459]
[1755206079070,2.11580621,118280.0,118270.0,0.17633459]
[1755206080201,1.54422964,118280.0,118270.0,0.17633459]
[1755206080599,1.58252359,118280.0,118270.0,0.17633459]
[1755206081615,2.15410016,118280.0,118270.0,0.17633459]
[1755206081821,2.15607016,118280.0,118270.0,0.17633459]
[1755206082461,2.15608049,118280.0,118270.0,0.17633459]
[1755206085653,2.32517078,118280.0,118270.0,0.17633459]
[1755206086089,2.32409078,118280.0,118270.0,0.17633459]
[1755206086858,2.38077935,118280.0,118270.0,0.002]
[1755206087062,2.46560059,118280.0,118270.0,0.002]
[1755206087263,2.38077935,118280.0,118270.0,0.17110459]
[1755206088428,2.38077937,118280.0,118270.0,0.17110459]
[1755206090350,2.37485078,118280.0,118270.0,0.17110459]
[1755206091142,2.38077975,118280.0,118270.0,0.17110459]
[1755206091317,2.37485078,118280.0,118270.0,0.17110459]
[1755206092731,2.47712104,118280.0,118270.0,0.002]
[1755206092955,2.48305052,118280.0,118270.0,0.002]
[1755206093429,2.39625928,118280.0,118270.0,0.17641459]
[1755206093655,2.3903298,118280.0,118270.0,0.17641459]
[1755206094348,1.24718154,118280.0,118270.0,0.17641459]
[1755206094585,2.39033468,118280.0,118270.0,0.17641459]
[1755206095640,2.39033468,118280.0,118270.0,0.00731]
[1755206095848,2.39230468,118280.0,118270.0,0.17110459]
[1755206097256,2.39231379,118280.0,118270.0,0.17110459]
[1755206097689,2.2232235,118280.0,118270.0,0.17425459]
[1755206097920,2.39231379,118280.0,118270.0,0.17641459]
[1755206098606,2.39231379,118280.0,118270.0,0.17110459]
[1755206099186,2.2232235,118280.0,118270.0,0.17110459]
[1755206099420,2.39231379,118280.0,118270.0,0.002]
[1755206099670,2.39824876,118280.0,118270.0,0.002]
[1755206099909,2.39824876,118280.0,118270.0,0.17110459]
[1755206100638,7.82534,118280.0,118270.0,0.002]
[1755206100870,7.94523,118280.0,118270.0,0.002]
[1755206103751,7.97015118,118280.0,118270.0,0.002]
[1755206103953,6.87064705,118280.0,118270.0,0.002]
[1755206104195,8.01380019,118280.0,118270.0,0.002]
[1755206104411,7.99556118,118280.0,118270.0,0.002]
[1755206105047,7.72103876,118280.0,118270.0,0.001]
[1755206105252,7.85259876,118280.0,118270.0,0.002]
[1755206105469,7.85259876,118280.0,118270.0,0.001]
[1755206105901,7.87259876,118280.0,118270.0,0.003]
[1755206106111,7.78357876,118280.0,118270.0,0.003]
[1755206106776,2.45201876,118280.0,118270.0,0.17717459]
[1755206106982,2.55816876,118280.0,118270.0,0.17717459]
[1755206107194,2.55619876,118280.0,118270.0,0.17717459]
[1755206107400,2.55619876,118280.0,118270.0,0.00807]
[1755206108349,2.63039217,118280.0,118270.0,0.003]
[1755206108559,2.63237217,118280.0,118270.0,0.003]
[1755206110816,2.6323785,118280.0,118270.0,0.003]
[1755206112825,2.5816185,118280.0,118270.0,0.003]
[1755206113021,2.50742509,118280.0,118270.0,0.17210459]
[1755206113231,2.50742509,118280.0,118270.0,0.003]
[1755206117347,1.36427195,118280.0,118270.0,0.003]
[1755206117605,2.50544509,118280.0,118270.0,0.00807]
[1755206118100,1.80230852,118280.0,118270.0,0.17717459]
[1755206118314,2.50742509,118280.0,118270.0,0.17717459]
[1755206118972,2.50742509,118280.0,118270.0,0.00807]
[1755206119226,2.79224633,118280.0,118270.0,0.00807]
[1755206121597,2.75395238,118280.0,118270.0,0.00807]
[1755206122031,2.66913114,118280.0,118270.0,0.00807]
[1755206122461,2.6691351,118280.0,118270.0,0.00807]
[1755206122672,1.52598196,118280.0,118270.0,0.00807]
[1755206122804,2.7198951,118280.0,118270.0,0.00807]
[1755206124528,2.7198951,118280.0,118270.0,0.003]
[1755206124755,2.80471634,118280.0,118270.0,0.003]
[1755206125465,2.80472308,118280.0,118270.0,0.003]
[1755206127776,2.71990184,118280.0,118270.0,0.003]
[1755206128210,2.71990362,118280.0,118270.0,0.003]
[1755206129137,2.75806844,118280.0,118270.0,0.003]
[1755206130386,7.75806844,118280.0,118270.0,0.003]
[1755206130627,7.78831844,118280.0,118270.0,0.003]
[1755206130835,7.91679903,118280.0,118270.0,0.003]
[1755206131041,7.94172473,118280.0,118270.0,0.003]
[1755206132638,7.94168473,118280.0,118270.0,0.003]
[1755206132926,7.92343338,118280.0,118270.0,0.003]
[1755206133131,7.94168132,118280.0,118270.0,0.003]
[1755206133852,7.94169933,118280.0,118270.0,0.003]
[1755206136848,7.94169628,118280.0,118270.0,0.003]
[1755206140598,7.82662504,118280.0,118270.0,0.003]
[1755206141563,7.82889504,118280.0,118270.0,0.003]
[1755206141801,0.73656791,118260.0,118250.0,0.00302]
[1755206142027,0.4,118240.0,118230.0,0.1691618]
[1755206142248,1.87532487,118240.0,118230.0,0.1711518]
[1755206142685,1.87531719,118240.0,118230.0,0.1741718]
[1755206143380,1.87536626,118240.0,118230.0,0.1741718]
[1755206143840,1.88385558,118240.0,118230.0,0.1741718]
[1755206144537,1.92263738,118240.0,118230.0,0.1741718]
[1755206144752,0.77948424,118240.0,118230.0,0.1741718]
[1755206144968,1.35106081,118240.0,118230.0,0.1741718]
[1755206145398,1.35306081,118240.0,118230.0,0.1741718]
[1755206145823,1.35506081,118240.0,118230.0,0.1741718]
[1755206146775,1.92663738,118240.0,118230.0,0.1741718]
[1755206147411,2.01145862,118240.0,118230.0,0.1741718]
[1755206147611,1.43988205,118240.0,118230.0,0.1741718]
[1755206147818,1.35506081,118240.0,118230.0,0.1741718]
[1755206150269,1.22354081,118240.0,118230.0,0.1741718]
[1755206150473,1.35502081,118240.0,118230.0,0.1741718]
[1755206150876,0.38344424,118240.0,118230.0,0.1741718]
[1755206151091,0.58344424,118240.0,118230.0,0.1741718]
[1755206151311,0.45196424,118240.0,118230.0,0.1741718]
[1755206151535,0.18886312,118240.0,118230.0,0.74574837]
[1755206151752,0.23552907,118240.0,118230.0,0.74574837]
[1755206151993,0.23552907,118240.0,118230.0,0.1741718]
[1755206152449,0.23552907,118240.0,118230.0,0.74574837]
[1755206153376,0.23408907,118240.0,118230.0,0.74574837]
[1755206153594,0.23552907,118240.0,118230.0,0.1741718]
[1755206158875,0.13148,118240.0,118230.0,0.52262989]
[1755206159083,0.23148,118240.0,118230.0,0.52262989]
[1755206160322,0.13148,118240.0,118230.0,0.52262989]
[1755206160533,0.13148,118240.0,118230.0,1.09420646]
[1755206161209,0.13148,118240.0,118230.0,0.52262989]
[1755206162033,0.13148,118240.0,118230.0,1.09420646]
[1755206162246,0.13248,118240.0,118230.0,1.10420646]
[1755206162453,0.13448,118240.0,118230.0,1.12220646]
[1755206163503,0.13448,118240.0,118230.0,0.55062989]
[1755206163899,0.13448,118240.0,118230.0,1.12220646]
[1755206168539,0.21929405,118240.0,118230.0,0.55062989]
[1755206168998,0.21921405,118240.0,118230.0,1.12220646]
[1755206170292,0.21921405,118240.0,118230.0,0.21062989]
[1755206170501,0.22119405,118240.0,118230.0,0.21062989]
[1755206170711,0.21921405,118240.0,118230.0,0.21062989]
[1755206174710,0.21921405,118240.0,118230.0,0.21062989]
[1755206176272,0.21921405,118240.0,118230.0,0.20561989]
[1755206176802,0.21921405,118240.0,118230.0,0.21069989]
[1755206177252,0.21921405,118240.0,118230.0,0.20860989]
[1755206177865,0.21921405,118240.0,118230.0,0.20561989]
[1755206178065,0.22123405,118240.0,118230.0,0.20561989]
[1755206178409,0.22123405,118240.0,118230.0,0.20860989]
[1755206178654,0.22123405,118240.0,118230.0,0.21069989]
[1755206178909,0.22123405,118240.0,118230.0,0.20860989]
[1755206179689,0.22123405,118240.0,118230.0,0.21069989]
[1755206180025,0.21921405,118240.0,118230.0,0.21069989]
[1755206187341,0.22123405,118240.0,118230.0,0.21069989]
[1755206187865,0.21921405,118240.0,118230.0,0.21069989]
[1755206191514,0.22123405,118240.0,118230.0,0.20561989]
[1755206192461,0.42123405,118240.0,118230.0,0.20561989]
[1755206192659,0.42346405,118240.0,118230.0,0.20561989]
[1755206192871,0.42123405,118240.0,118230.0,0.20561989]
[1755206194029,0.42123405,118240.0,118230.0,0.21069989]
[1755206194660,0.41921405,118240.0,118230.0,0.21069989]
[1755206195048,0.42123405,118240.0,118230.0,0.20561989]
[1755206197841,0.62123405,118240.0,118230.0,0.20561989]
[1755206198046,0.63709034,118240.0,118230.0,0.20561989]
[1755206201142,0.62123405,118240.0,118230.0,0.20561989]
[1755206201551,0.63708201,118240.0,118230.0,0.20561989]
[1755206202498,0.63708107,118240.0,118230.0,0.20561989]
[1755206202706,0.62123405,118240.0,118230.0,0.20561989]
[1755206202922,0.63708107,118240.0,118230.0,0.20561989]
[1755206203437,0.63708003,118240.0,118230.0,0.20561989]
[1755206203634,0.62123405,118240.0,118230.0,0.20561989]
[1755206207971,1.21088405,118240.0,118230.0,0.20561989]
[1755206208170,1.48795344,118240.0,118230.0,0.1971618]
[1755206208364,1.31880595,118240.0,118230.0,0.1971618]
[1755206208570,0.74722938,118240.0,118230.0,0.1971618]
[1755206208767,1.31880595,118240.0,118230.0,0.1971618]
[1755206209015,1.31880595,118240.0,118230.0,0.1871618]
[1755206209016,1.31780595,118240.0,118230.0,0.1871618]
[1755206209242,1.31580595,118240.0,118230.0,0.1691618]
[1755206212316,1.30788405,118240.0,118230.0,0.1691618]
[1755206212983,1.50519238,118240.0,118230.0,0.1691618]
[1755206213193,1.33604489,118240.0,118230.0,0.1691618]
[1755206214827,1.5734214,118240.0,118230.0,0.1691618]
[1755206215040,1.58133559,118240.0,118220.0,0.17762202]
[1755206215255,0.78767062,118230.0,118220.0,0.17762202]
[1755206215463,0.81095558,118230.0,118220.0,0.17762202]
[1755206216643,0.81295558,118230.0,118220.0,0.19562202]
[1755206217189,0.81395558,118230.0,118220.0,0.20662202]
[1755206220352,0.24237901,118230.0,118220.0,0.20662202]
[1755206220581,0.24035901,118230.0,118220.0,0.21163202]
[1755206221080,0.81395558,118230.0,118220.0,0.21163202]
[1755206222727,0.81395558,118230.0,118220.0,0.20662202]
[1755206224013,0.85113348,118230.0,118220.0,0.20955202]
[1755206225428,0.92062674,118230.0,118220.0,0.20955202]
[1755206226093,0.85113348,118230.0,118220.0,0.21163202]
[1755206228084,0.10907901,118230.0,118220.0,0.21163202]
[1755206228318,0.24031901,118230.0,118220.0,0.78320859]
[1755206230451,0.24031901,118230.0,118220.0,0.21163202]
[1755206234865,0.81385558,118230.0,118220.0,0.20662202]
[1755206235288,1.01385558,118230.0,118220.0,0.20662202]
[1755206236160,1.09867682,118230.0,118220.0,0.20662202]
[1755206236371,1.21451435,118230.0,118220.0,0.20662202]
[1755206236576,1.12969311,118230.0,118220.0,0.20662202]
[1755206237053,1.12769311,118230.0,118220.0,0.18862202]
[1755206237268,1.14169311,118230.0,118220.0,0.18155202]
[1755206237483,1.15369311,118230.0,118220.0,0.18255202]
[1755206237684,1.15369311,118230.0,118220.0,0.18471202]
[1755206237893,0.58211654,118230.0,118220.0,0.18471202]
[1755206238122,0.43307901,118230.0,118220.0,0.18471202]
[1755206238381,0.56427901,118230.0,118220.0,0.75628859]
[1755206239064,0.36427901,118230.0,118220.0,0.18471202]
[1755206240252,0.36427901,118230.0,118220.0,0.17962202]
[1755206240253,0.56623901,118230.0,118220.0,0.17962202]
[1755206240500,0.43307901,118230.0,118220.0,0.18471202]
[1755206240722,0.56423901,118230.0,118220.0,0.75628859]
[1755206241178,0.56423901,118230.0,118220.0,0.18471202]
[1755206253176,0.23307901,118230.0,118220.0,0.75628859]
[1755206253391,0.36419901,118230.0,118220.0,0.75628859]
[1755206254708,0.56419901,118230.0,118220.0,0.75628859]
[1755206255578,0.14826496,118230.0,118220.0,0.75628859]
[1755206255795,0.20308,118260.0,118250.0,0.16913319]
[1755206256015,0.64473096,118260.0,118250.0,0.16928064]
[1755206256241,0.43681199,118260.0,118250.0,0.16928064]
[1755206256459,0.63681199,118260.0,118250.0,0.16928064]
[1755206256887,1.21630664,118260.0,118250.0,0.16928064]
[1755206257020,1.21857664,118260.0,118250.0,0.16928064]
[1755206257416,1.41857664,118260.0,118250.0,0.16928064]
[1755206257826,1.43257664,118260.0,118250.0,0.17028064]
[1755206259263,1.49501694,118260.0,118250.0,0.17028064]
[1755206259505,0.92344037,118260.0,118250.0,0.17028064]
[1755206259784,1.43757664,118260.0,118250.0,0.17028064]
[1755206260143,1.43707699,118260.0,118250.0,0.17028064]
[1755206260359,1.43707488,118260.0,118250.0,0.17028064]
[1755206260968,1.43707485,118260.0,118250.0,0.17028064]
[1755206261375,1.42123691,118260.0,118250.0,0.17028064]
[1755206261579,1.43706783,118260.0,118250.0,0.17028064]
[1755206262771,1.42915189,118260.0,118250.0,0.17028064]
[1755206263201,1.43706683,118260.0,118250.0,0.17028064]
[1755206263383,1.42492189,118260.0,118250.0,0.17028064]
[1755206266710,0.85330532,118260.0,118250.0,0.17028064]
[1755206268655,0.85330532,118260.0,118250.0,0.17537064]
[1755206269485,1.42488189,118260.0,118250.0,0.17028064]
[1755206270446,1.42688189,118260.0,118250.0,0.17028064]
[1755206272996,1.51395313,118260.0,118250.0,0.17028064]
[1755206273243,1.52187067,118260.0,118250.0,0.17028064]
[1755206273543,1.43704943,118260.0,118250.0,0.17028064]
[1755206273755,1.60616832,118260.0,118250.0,0.17028064]
[1755206274038,1.43704943,118260.0,118250.0,0.17028064]
[1755206274894,1.43704979,118260.0,118250.0,0.17028064]
[1755206275121,1.60616868,118260.0,118250.0,0.17028064]
[1755206275366,1.43704979,118260.0,118250.0,0.17028064]
[1755206275605,1.60616868,118260.0,118250.0,0.17028064]
[1755206279970,2.04843894,118260.0,118250.0,0.00114745]
[1755206280184,2.05438316,118260.0,118250.0,0.00114745]
[1755206281900,2.07979416,118260.0,118250.0,0.00114745]
[1755206282459,7.07979416,118260.0,118250.0,0.00114745]
[1755206282662,7.18737316,118260.0,118250.0,0.00114745]
[1755206283525,7.18237316,118260.0,118250.0,0.00114745]
[1755206283731,7.21271537,118260.0,118250.0,0.00014745]
[1755206283933,7.29741655,118260.0,118250.0,0.00014745]
[1755206284653,7.31566076,118260.0,118250.0,0.00014745]
[1755206285314,7.29741655,118260.0,118250.0,0.00014745]
[1755206285671,7.29741116,118260.0,118250.0,0.00014745]
[1755206286123,7.19133116,118260.0,118250.0,0.00014745]
[1755206286315,7.3405651,118260.0,118250.0,0.00014745]
[1755206286694,7.91214167,118260.0,118250.0,0.00014745]
[1755206287103,7.3405651,118260.0,118250.0,0.00014745]
[1755206287318,7.91214167,118260.0,118250.0,0.00014745]
[1755206288138,7.3405651,118260.0,118250.0,0.00014745]
[1755206288848,6.76898853,118260.0,118250.0,0.00014745]
[1755206289087,7.3405651,118260.0,118250.0,0.00014745]
[1755206290107,7.25574386,118260.0,118250.0,0.00014745]
[1755206290308,7.28116086,118260.0,118250.0,0.00014745]
[1755206292238,7.26292692,118260.0,118250.0,0.00014745]
[1755206292669,7.83450349,118260.0,118250.0,0.00014745]
[1755206294231,7.26292692,118260.0,118250.0,0.00014745]
[1755206294474,7.34774816,118260.0,118250.0,0.00014745]
[1755206295967,7.33029914,118260.0,118250.0,0.00014745]
[1755206296189,7.32274816,118260.0,118250.0,0.00014745]
[1755206296405,7.34774816,118260.0,118250.0,0.00014745]
[1755206298302,7.91930913,118260.0,118250.0,0.00014745]
[1755206298523,7.93751344,118260.0,118250.0,0.00014745]
[1755206298962,7.93151344,118260.0,118250.0,0.00014745]
[1755206299406,7.93051344,118260.0,118250.0,0.00114745]
[1755206299640,7.93551344,118260.0,118250.0,0.00214745]
[1755206299855,7.92751344,118260.0,118250.0,0.00114745]
[1755206300299,7.93551344,118260.0,118250.0,0.00214745]
[1755206302745,7.88473344,118260.0,118250.0,0.00214745]
[1755206303729,7.89063344,118260.0,118250.0,0.00214745]
[1755206304133,0.4,118210.0,118200.0,0.17762539]
[1755206304337,0.4,118210.0,118200.0,0.18022719]
[1755206304338,0.63252497,118210.0,118200.0,0.18022719]
[1755206304892,0.63252497,118210.0,118200.0,0.18315719]
[1755206305113,0.66972816,118210.0,118200.0,0.18315719]
[1755206305338,0.56115025,118210.0,118200.0,0.18315719]
[1755206305568,0.69411025,118210.0,118200.0,0.19215719]
[1755206305801,0.69611025,118210.0,118200.0,0.21015719]
[1755206308448,0.56415025,118210.0,118200.0,0.21015719]
[1755206308932,0.23612497,118210.0,118200.0,0.78173376]
[1755206309406,0.23612497,118210.0,118200.0,0.21015719]
[1755206309624,0.23628497,118210.0,118200.0,0.78173376]
[1755206310074,0.23628497,118210.0,118200.0,0.21015719]
[1755206310311,0.43628497,118210.0,118200.0,0.78173376]
[1755206311734,0.30364497,118210.0,118200.0,0.21015719]
[1755206311929,0.30364497,118210.0,118200.0,1.14494798]
[1755206311930,0.23632497,118210.0,118200.0,1.14494798]
[1755206312141,0.23632497,118210.0,118200.0,1.17767798]
[1755206312380,0.15151092,118210.0,118200.0,1.17767798]
[1755206312569,0.13568,118210.0,118200.0,0.60610141]
[1755206312959,0.13568,118210.0,118200.0,1.17767798]
[1755206313380,0.13568,118210.0,118200.0,1.17680167]
[1755206314031,0.2378966,118240.0,118230.0,0.1691618]
[1755206314247,0.56331133,118240.0,118230.0,0.1712718]
[1755206314421,0.31749405,118240.0,118230.0,0.1742018]
[1755206314624,0.18481405,118240.0,118230.0,0.1742018]
[1755206314861,0.31741405,118240.0,118230.0,0.1996118]
[1755206315291,0.32141405,118240.0,118230.0,0.1996118]
[1755206315712,0.32341405,118240.0,118230.0,0.1996118]
[1755206315930,0.22341405,118240.0,118230.0,0.1996118]
[1755206316938,0.22141405,118240.0,118230.0,0.1996118]
[1755206317764,0.21741405,118240.0,118230.0,0.77118837]
[1755206317993,0.41741405,118240.0,118230.0,0.77118837]
[1755206318423,0.42241405,118240.0,118230.0,0.77118837]
[1755206319449,0.42241405,118240.0,118230.0,0.1996118]
[1755206319590,0.42241405,118240.0,118230.0,0.77118837]
[1755206320036,0.22241405,118240.0,118230.0,0.77118837]
[1755206321093,0.22209405,118240.0,118230.0,0.77118837]
[1755206321786,0.21709405,118240.0,118230.0,0.77118837]
[1755206322213,0.08481405,118240.0,118230.0,0.77718837]
[1755206322437,0.21709405,118240.0,118230.0,0.77718837]
[1755206322646,0.21709405,118240.0,118230.0,0.79418837]
[1755206322826,0.21909405,118240.0,118230.0,0.79418837]
[1755206323784,0.08681405,118240.0,118230.0,0.79418837]
[1755206323947,0.21901405,118240.0,118230.0,0.79418837]
[1755206324165,0.08681405,118240.0,118230.0,0.79418837]
[1755206324371,0.21901405,118240.0,118230.0,0.79418837]
[1755206328240,0.21901405,118240.0,118230.0,0.2226118]